fUSD/lending_fUSD_20250110
["ID","MTS","AMOUNT","RATE_DAILY","PERIOD"]
[348362978,1736469038709,-583.66,9.837e-05,2]
[348362980,1736469038718,-539.22,9.837e-05,2]
[348362982,1736469038729,-1010.24,9.837e-05,2]
[348362984,1736469038746,-500.0,9.837e-05,2]
[348362986,1736469038755,-806.1,9.837e-05,2]
[348362988,1736469038765,-587.65,9.837e-05,2]
[348362990,1736469038774,-500.0,9.837e-05,2]
[348362992,1736469038784,-586.76,9.837e-05,2]
[348362994,1736469038793,-773.58,9.837e-05,2]
[348362996,1736469038803,-500.0,9.837e-05,2]
[348362998,1736469038812,-500.0,9.837e-05,2]
[348363000,1736469038822,-530.93,9.837e-05,2]
[348363002,1736469038832,-846.63,9.837e-05,2]
[348363004,1736469038841,-812.61,9.837e-05,2]
[348363006,1736469038851,-500.0,9.837e-05,2]
[348363008,1736469038861,-1028.64,9.837e-05,2]
[348363010,1736469038870,-931.29,9.837e-05,2]
[348363012,1736469038880,-1000.18,9.837e-05,2]
[348363014,1736469038889,-500.0,9.837e-05,2]
[348363016,1736469038899,-706.39,9.837e-05,2]
[348363018,1736469038909,-1150.67,9.837e-05,2]
[348363020,1736469038921,-500.0,9.837e-05,2]
[348363022,1736469038931,-500.0,9.837e-05,2]
[348363024,1736469038940,-500.0,9.837e-05,2]
[348363026,1736469038950,-816.59,9.837e-05,2]
[348363028,1736469038960,-592.33,9.837e-05,2]
[348363030,1736469038969,-500.0,9.837e-05,2]
[348363031,1736469038978,-500.0,9.837e-05,2]
[348363032,1736469038988,-500.0,9.837e-05,2]
[348363033,1736469038997,-500.0,9.837e-05,2]
[348363034,1736469039006,-983.2,9.837e-05,2]
[348363035,1736469039016,-933.31,9.837e-05,2]
[348363036,1736469039025,-500.0,9.837e-05,2]
[348363037,1736469039035,-555.8,9.837e-05,2]
[348363038,1736469039046,-680.8,9.837e-05,2]
[348363039,1736469039056,-500.0,9.837e-05,2]
[348363040,1736469039065,-648.27,9.837e-05,2]
[348363041,1736469039075,-628.4,9.837e-05,2]
[348363042,1736469039084,-618.01,9.837e-05,2]
[348363043,1736469039094,-3946.42,9.837e-05,2]
[348363044,1736469039104,-884.57,9.837e-05,2]
[348363045,1736469039114,-414.29336552,9.837e-05,2]
[348363046,1736469039124,-500.0,9.837e-05,2]
[348363047,1736469039134,-1621.5,9.837e-05,2]
[348363048,1736469039143,-1192.34,9.837e-05,2]
[348363049,1736469039153,-825.03,9.837e-05,2]
[348363050,1736469039162,-3229.12,9.837e-05,2]
[348363051,1736469039171,-1102.44,9.837e-05,2]
[348363052,1736469039182,-4511.39,9.837e-05,2]
[348363053,1736469039191,-500.0,9.837e-05,2]
[348363054,1736469039200,-9672.34,9.837e-05,2]
[348363055,1736469039210,-500.0,9.837e-05,2]
[348363056,1736469039219,-500.0,9.837e-05,2]
[348363057,1736469039228,-675.88,9.837e-05,2]
[348363058,1736469039240,-1329.59,9.837e-05,2]
[348363059,1736469039251,-1061.76,9.837e-05,2]
[348363060,1736469039261,-1233.37,9.837e-05,2]
[348363061,1736469039272,-812.91,9.837e-05,2]
[348363062,1736469039282,-1633.77,9.837e-05,2]
[348363063,1736469039292,-1444.51,9.837e-05,2]
[348363064,1736469039303,-500.0,9.837e-05,2]
[348363065,1736469039315,-783.75,9.837e-05,2]
[348363066,1736469039328,-1499.89,9.837e-05,2]
[348363067,1736469039339,-897.44,9.837e-05,2]
[348363068,1736469039349,-1747.09,9.837e-05,2]
[348363069,1736469039359,-500.0,9.837e-05,2]
[348363070,1736469039369,-500.0,9.837e-05,2]
[348363071,1736469039378,-2782.79,9.837e-05,2]
[348363072,1736469039387,-681.98,9.837e-05,2]
[348363073,1736469039397,-699.86,9.837e-05,2]
[348363074,1736469039406,-771.43,9.837e-05,2]
[348363075,1736469039415,-1552.23,9.837e-05,2]
[348363076,1736469039424,-236.96820196,9.837e-05,2]
[348363077,1736469039436,-500.0,9.837e-05,2]
[348363078,1736469039446,-2593.06,9.837e-05,2]
[348363079,1736469039456,-831.76,9.837e-05,2]
[348363080,1736469039466,-500.0,9.837e-05,2]
[348363081,1736469039475,-500.0,9.837e-05,2]
[348363082,1736469039485,-500.0,9.837e-05,2]
[348363083,1736469039494,-500.0,9.837e-05,2]
[348363084,1736469039503,-1961.57,9.837e-05,2]
[348363085,1736469039513,-4672.92,9.837e-05,2]
[348363086,1736469039522,-1123.79,9.837e-05,2]
[348363087,1736469039531,-505.08,9.837e-05,2]
[348363088,1736469039540,-942.52,9.837e-05,2]
[348363089,1736469039549,-500.0,9.837e-05,2]
[348363090,1736469039558,-4901.89,9.837e-05,2]
[348363091,1736469039567,-734.81,9.837e-05,2]
[348363092,1736469039576,-500.0,9.837e-05,2]
[348363093,1736469039586,-2414.55,9.837e-05,2]
[348363094,1736469039595,-1126.65,9.837e-05,2]
[348363095,1736469039605,-643.21,9.837e-05,2]
[348363096,1736469039615,-1657.36,9.837e-05,2]
[348363097,1736469039624,-1070.66,9.837e-05,2]
[348363098,1736469039634,-2199.85,9.837e-05,2]
[348363099,1736469039644,-1099.93,9.837e-05,2]
[348363100,1736469039652,-953.69,9.837e-05,2]
[348363101,1736469039662,-1281.32,9.837e-05,2]
[348363102,1736469039671,-1168.64,9.837e-05,2]
[348363103,1736469039683,-500.0,9.837e-05,2]
[348363104,1736469039693,-2296.7,9.837e-05,2]
[348363105,1736469039703,-715.65,9.837e-05,2]
[348363106,1736469039712,-1985.32,9.837e-05,2]
[348363107,1736469039722,-1447.16,9.837e-05,2]
[348363108,1736469039731,-873.2,9.837e-05,2]
[348363109,1736469039740,-663.43,9.837e-05,2]
[348363110,1736469039749,-3682.88,9.837e-05,2]
[348363111,1736469039759,-1310.8,9.837e-05,2]
[348363112,1736469039768,-506.47,9.837e-05,2]
[348363113,1736469039777,-711.43,9.837e-05,2]
[348363114,1736469039786,-1133.8,9.837e-05,2]
[348363115,1736469039796,-673.26,9.837e-05,2]
[348363116,1736469039805,-500.0,9.837e-05,2]
[348363117,1736469039815,-2821.02,9.837e-05,2]
[348363118,1736469039824,-501.43,9.837e-05,2]
[348363119,1736469039834,-529.72,9.837e-05,2]
[348363120,1736469039843,-1346.9,9.837e-05,2]
[348363121,1736469039852,-294.78594314,9.837e-05,2]
[348363122,1736469039862,-1166.43,9.837e-05,2]
[348363123,1736469039871,-833.57,9.837e-05,2]
[348363124,1736469039880,-764.76,9.837e-05,2]
[348363125,1736469039890,-986.15,9.837e-05,2]
[348363126,1736469039899,-872.23,9.837e-05,2]
[348363127,1736469039908,-689.07,9.837e-05,2]
[348363128,1736469039917,-2286.33,9.837e-05,2]
[348363129,1736469039927,-2029.38,9.837e-05,2]
[348363130,1736469039939,-500.0,9.837e-05,2]
[348363131,1736469039947,-1682.83,9.837e-05,2]
[348363132,1736469039957,-500.0,9.837e-05,2]
[348363133,1736469039966,-1403.17,9.837e-05,2]
[348363134,1736469039975,-500.0,9.837e-05,2]
[348363135,1736469039984,-500.0,9.837e-05,2]
[348363136,1736469039994,-1108.27,9.837e-05,2]
[348363137,1736469040003,-500.0,9.837e-05,2]
[348363138,1736469040013,-500.0,9.837e-05,2]
[348363139,1736469040022,-3766.33,9.837e-05,2]
[348363140,1736469040033,-492.76441114,9.838e-05,2]
[348363141,1736469040042,-500.0,9.838e-05,2]
[348363142,1736469040052,-500.0,9.838e-05,2]
[348363143,1736469040061,-500.0,9.838e-05,2]
[348363144,1736469040071,-500.0,9.838e-05,2]
[348363145,1736469040080,-500.0,9.838e-05,2]
[348363146,1736469040090,-500.0,9.838e-05,2]
[348363147,1736469040100,-500.0,9.838e-05,2]
[348363148,1736469040110,-500.0,9.838e-05,2]
[348363149,1736469040121,-500.0,9.838e-05,2]
[348363150,1736469040133,-500.0,9.838e-05,2]
[348363151,1736469040143,-500.0,9.838e-05,2]
[348363152,1736469040153,-500.0,9.838e-05,2]
[348363153,1736469040165,-500.0,9.838e-05,2]
[348363154,1736469040175,-500.0,9.838e-05,2]
[348363155,1736469040186,-523.85950343,9.838e-05,2]
[348363156,1736469040195,-500.0,9.838e-05,2]
[348363157,1736469040204,-500.0,9.838e-05,2]
[348363158,1736469040214,-582.12,9.838e-05,2]
[348363159,1736469040226,-500.0,9.838e-05,2]
[348363160,1736469040235,-500.0,9.838e-05,2]
[348363161,1736469040246,-500.0,9.838e-05,2]
[348363162,1736469040255,-500.0,9.838e-05,2]
[348363163,1736469040265,-500.0,9.838e-05,2]
[348363164,1736469040275,-500.0,9.838e-05,2]
[348363165,1736469040287,-500.0,9.838e-05,2]
[348363166,1736469040298,-500.0,9.838e-05,2]
[348363167,1736469040308,-500.0,9.838e-05,2]
[348363168,1736469040321,-500.0,9.838e-05,2]
[348363169,1736469040331,-500.0,9.838e-05,2]
[348363170,1736469040341,-500.0,9.838e-05,2]
[348363171,1736469040351,-500.0,9.838e-05,2]
[348363172,1736469040362,-500.0,9.838e-05,2]
[348363173,1736469040371,-500.0,9.838e-05,2]
[348363174,1736469040380,-500.0,9.838e-05,2]
[348363175,1736469040391,-500.0,9.838e-05,2]
[348363176,1736469040401,-500.0,9.838e-05,2]
[348363177,1736469040411,-500.0,9.838e-05,2]
[348363178,1736469040420,-500.0,9.838e-05,2]
[348363179,1736469040431,-500.0,9.838e-05,2]
[348363180,1736469040441,-500.0,9.838e-05,2]
[348363181,1736469040451,-500.0,9.838e-05,2]
[348363182,1736469040708,-596.87,9.838e-05,2]
[348363183,1736469040719,-500.0,9.838e-05,2]
[348363184,1736469040729,-500.0,9.838e-05,2]
[348363185,1736469040740,-500.0,9.838e-05,2]
[348363186,1736469040750,-500.0,9.838e-05,2]
[348363187,1736469040759,-500.0,9.838e-05,2]
[348363188,1736469040769,-226.83881288,9.838e-05,2]
[348363189,1736469040779,-500.0,9.838e-05,2]
[348363190,1736469040789,-256.52765012,9.838e-05,2]
[348363191,1736469040798,-500.0,9.838e-05,2]
[348363192,1736469040807,-500.0,9.838e-05,2]
[348363193,1736469040817,-500.0,9.838e-05,2]
[348363194,1736469040827,-500.0,9.838e-05,2]
[348363195,1736469040836,-500.0,9.838e-05,2]
[348363196,1736469040846,-560.98,9.838e-05,2]
[348363197,1736469040856,-500.0,9.838e-05,2]
[348363198,1736469040866,-500.0,9.838e-05,2]
[348363199,1736469040876,-500.0,9.838e-05,2]
[348363200,1736469040886,-500.0,9.838e-05,2]
[348363201,1736469040896,-500.0,9.838e-05,2]
[348363202,1736469040906,-500.0,9.838e-05,2]
[348363203,1736469040916,-500.0,9.838e-05,2]
[348363204,1736469040925,-500.0,9.838e-05,2]
[348363205,1736469040935,-293.28360574,9.838e-05,2]
[348363206,1736469040945,-500.0,9.838e-05,2]
[348363207,1736469040955,-500.0,9.838e-05,2]
[348363208,1736469040965,-500.0,9.838e-05,2]
[348363209,1736469040975,-500.0,9.838e-05,2]
[348363210,1736469040985,-500.0,9.838e-05,2]
[348363211,1736469040994,-500.0,9.838e-05,2]
[348363212,1736469041003,-500.0,9.838e-05,2]
[348363213,1736469041013,-448.65722129,9.838e-05,2]
[348363214,1736469041022,-516.39,9.838e-05,2]
[348363215,1736469041031,-500.0,9.838e-05,2]
[348363216,1736469041042,-159.37050633,9.838e-05,2]
[348363217,1736469041052,-500.0,9.838e-05,2]
[348363218,1736469041062,-500.0,9.838e-05,2]
[348363219,1736469041072,-500.0,9.838e-05,2]
[348363220,1736469041081,-500.0,9.838e-05,2]
[348363221,1736469041091,-500.0,9.838e-05,2]
[348363222,1736469041101,-500.0,9.838e-05,2]
[348363223,1736469041110,-1426.53,9.838e-05,2]
[348363224,1736469041120,-543.34,9.838e-05,2]
[348363225,1736469041130,-1086.89,9.838e-05,2]
[348363226,1736469041140,-500.0,9.838e-05,2]
[348363227,1736469041149,-500.0,9.838e-05,2]
[348363228,1736469041159,-605.31,9.838e-05,2]
[348363229,1736469041169,-533.25170867,9.838e-05,2]
[348363230,1736469041178,-651.59,9.838e-05,2]
[348363231,1736469041190,-500.0,9.838e-05,2]
[348363232,1736469041201,-1745.41,9.838e-05,2]
[348363233,1736469041211,-518.44,9.838e-05,2]
[348363234,1736469041221,-500.0,9.838e-05,2]
[348363235,1736469041231,-500.0,9.838e-05,2]
[348363236,1736469041241,-3297.52,9.838e-05,2]
[348363237,1736469041250,-2525.42,9.838e-05,2]
[348363238,1736469041260,-811.77,9.838e-05,2]
[348363239,1736469041270,-778.61,9.838e-05,2]
[348363240,1736469041281,-946.32,9.838e-05,2]
[348363241,1736469041291,-500.0,9.838e-05,2]
[348363242,1736469041300,-500.0,9.838e-05,2]
[348363243,1736469041311,-997.74,9.838e-05,2]
[348363244,1736469041325,-831.02,9.838e-05,2]
[348363245,1736469041335,-2260.63,9.838e-05,2]
[348363246,1736469041344,-2087.042455,9.838e-05,2]
[348363247,1736469041353,-839.67,9.838e-05,2]
[348363248,1736469041363,-1042.55,9.838e-05,2]
[348363249,1736469041372,-2157.571587,9.838e-05,2]
[348363250,1736469041382,-1385.33,9.838e-05,2]
[348363251,1736469041391,-500.0,9.838e-05,2]
[348363252,1736469041402,-500.0,9.838e-05,2]
[348363253,1736469041413,-622.19,9.838e-05,2]
[348363254,1736469041423,-173.648839,9.838e-05,2]
[348363255,1736469041434,-500.0,9.838e-05,2]
[348363256,1736469041443,-4626.73,9.838e-05,2]
[348363257,1736469041452,-1238.46,9.838e-05,2]
[348363258,1736469041461,-765.7,9.838e-05,2]
[348363259,1736469041471,-1021.29,9.838e-05,2]
[348363260,1736469041480,-1613.0,9.838e-05,2]
[348363261,1736469041490,-500.0,9.838e-05,2]
[348363262,1736469041500,-1437.31,9.838e-05,2]
[348363263,1736469041509,-500.0,9.838e-05,2]
[348363264,1736469041519,-758.99,9.838e-05,2]
[348363265,1736469041529,-927.28,9.838e-05,2]
[348363266,1736469041540,-500.0,9.838e-05,2]
[348363267,1736469041551,-931.3,9.838e-05,2]
[348363268,1736469041563,-500.0,9.838e-05,2]
[348363269,1736469041572,-500.0,9.838e-05,2]
[348363270,1736469041582,-540.7,9.838e-05,2]
[348363271,1736469041591,-759.32,9.838e-05,2]
[348363272,1736469041600,-611.05,9.838e-05,2]
[348363273,1736469041610,-513.99,9.838e-05,2]
[348363274,1736469041619,-4206.38,9.838e-05,2]
[348363275,1736469041628,-500.0,9.838e-05,2]
[348363276,1736469041637,-2454.53,9.838e-05,2]
[348363277,1736469041647,-1530.16,9.838e-05,2]
[348363278,1736469041656,-500.0,9.838e-05,2]
[348363279,1736469041665,-1270.35,9.838e-05,2]
[348363280,1736469041675,-1399.01,9.838e-05,2]
[348363281,1736469041686,-3569.7,9.838e-05,2]
[348363282,1736469041695,-872.78,9.838e-05,2]
[348363283,1736469041705,-6169.85,9.838e-05,2]
[348363284,1736469041714,-1534.49,9.838e-05,2]
[348363285,1736469041724,-2448.29,9.838e-05,2]
[348363286,1736469041734,-2016.77,9.838e-05,2]
[348363287,1736469041744,-3499.46,9.838e-05,2]
[348363288,1736469041753,-1934.71,9.838e-05,2]
[348363289,1736469041763,-1430.26,9.838e-05,2]
[348363290,1736469041772,-974.4,9.838e-05,2]
[348363291,1736469041782,-1541.4,9.838e-05,2]
[348363292,1736469041792,-2111.88,9.838e-05,2]
[348363293,1736469041802,-658.57,9.839e-05,2]
[348363294,1736469041811,-1999.81,9.839e-05,2]
[348363295,1736469041820,-936.12,9.839e-05,2]
[348363296,1736469041829,-1426.89,9.839e-05,2]
[348363297,1736469041839,-1126.78,9.839e-05,2]
[348363298,1736469041849,-1387.97,9.839e-05,2]
[348363299,1736469041859,-1873.72,9.839e-05,2]
[348363300,1736469041868,-2124.38,9.839e-05,2]
[348363301,1736469041878,-3258.56,9.839e-05,2]
[348363302,1736469041887,-8382.05,9.839e-05,2]
[348363303,1736469041896,-1511.11,9.839e-05,2]
[348363304,1736469041905,-1156.36,9.839e-05,2]
[348363305,1736469041914,-1253.36,9.839e-05,2]
[348363306,1736469041924,-3475.34,9.839e-05,2]
[348363307,1736469041934,-534.84,9.839e-05,2]
[348363308,1736469041944,-1207.83,9.839e-05,2]
[348363309,1736469041953,-1747.82,9.839e-05,2]
[348363310,1736469041963,-1229.41,9.839e-05,2]
[348363311,1736469041973,-2006.98,9.839e-05,2]
[348363312,1736469041983,-500.0,9.839e-05,2]
[348363313,1736469041993,-1390.14,9.839e-05,2]
[348363314,1736469042002,-1454.13,9.839e-05,2]
[348363315,1736469042011,-500.0,9.839e-05,2]
[348363316,1736469042020,-3839.31,9.839e-05,2]
[348363317,1736469042029,-2386.47,9.839e-05,2]
[348363318,1736469042039,-3780.86182331,9.878e-05,2]
[348363319,1736469042048,-726.56064744,9.91e-05,2]
[348363320,1736469042057,-63761.85070172,9.971e-05,2]
[348363321,1736469042067,-20652.98952248,9.971e-05,2]
[348363322,1736469042076,-200.0,9.971e-05,2]
[348363323,1736469042086,-2888.40936121,9.971e-05,2]
[348363324,1736469042095,-20652.98952248,9.971e-05,2]
[348363325,1736469042105,-6786.44378635,9.972e-05,2]
[348363326,1736469042114,-20652.98952248,9.972e-05,2]
[348363327,1736469042123,-2888.40936121,9.972e-05,2]
[348363328,1736469042133,-14580.75935475,9.972e-05,2]
[348363329,1736469042142,-20652.98952248,9.974e-05,2]
[348363330,1736469042151,-14580.75935475,9.974e-05,2]
[348363331,1736469042160,-10048.67938729,9.974e-05,2]
[348363332,1736469042170,-10048.67938729,9.974e-05,2]
[348363333,1736469042180,-89148.37474813,9.974e-05,2]
[348363334,1736469042189,-200.0,9.975e-05,2]
[348363335,1736469042199,-63761.85070172,9.977e-05,2]
[348363336,1736469042208,-6786.44378635,9.977e-05,2]
[348363337,1736469042217,-245.90470347,9.977e-05,2]
[348363338,1736469042227,-122020.3451233,9.978e-05,2]
[348363339,1736469042236,-14580.75935475,9.978e-05,2]
[348363340,1736469042246,-2888.40936121,9.978e-05,2]
[348363341,1736469042255,-89148.37474813,9.979e-05,2]
[348363342,1736469042266,-122020.3451233,9.98e-05,2]
[348363343,1736469042275,-14580.75935475,9.98e-05,2]
[348363344,1736469042285,-245.90470347,9.98e-05,2]
[348363345,1736469042295,-89148.37474813,9.98e-05,2]
[348363346,1736469042305,-10048.67938729,9.981e-05,2]
[348363347,1736469042320,-10295.87128774,9.981e-05,2]
[348363348,1736469042329,-122020.3451233,9.982e-05,2]
[348363349,1736469042339,-10048.67938729,9.982e-05,2]
[348363350,1736469042349,-122020.3451233,9.983e-05,2]
[348363351,1736469042358,-245.90470347,9.983e-05,2]
[348363352,1736469042367,-63761.85070172,9.984e-05,2]
[348363353,1736469042377,-14580.75935475,9.984e-05,2]
[348363354,1736469042386,-245.90470347,9.985e-05,2]
[348363355,1736469042396,-122020.3451233,9.985e-05,2]
[348363356,1736469042406,-2888.40936121,9.985e-05,2]
[348363357,1736469042415,-20652.98952248,9.985e-05,2]
[348363358,1736469042424,-10048.67938729,9.986e-05,2]
[348363359,1736469042435,-63761.85070172,9.986e-05,2]
[348363360,1736469042444,-10048.67938729,9.987e-05,2]
[348363361,1736469042453,-122020.3451233,9.987e-05,2]
[348363362,1736469042463,-89148.37474813,9.987e-05,2]
[348363363,1736469042487,-2888.40936121,9.988e-05,2]
[348363364,1736469042496,-4859.97566595,9.988e-05,2]
[348363365,1736469042505,-63761.85070172,9.989e-05,2]
[348363366,1736469042514,-2888.40936121,9.99e-05,2]
[348363367,1736469042523,-89148.37474813,9.99e-05,2]
[348363368,1736469042532,-6786.44378635,9.991e-05,2]
[348363369,1736469042542,-6786.44378635,9.992e-05,2]
[348363370,1736469042551,-14580.75935475,9.992e-05,2]
[348363371,1736469042560,-89148.37474813,9.992e-05,2]
[348363372,1736469042570,-63761.85070172,9.994e-05,2]
[348363373,1736469042579,-200.0,9.995e-05,2]
[348363374,1736469042588,-10295.87128774,9.996e-05,2]
[348363375,1736469042597,-10295.87128774,9.996e-05,2]
[348363376,1736469042607,-6786.44378635,9.996e-05,2]
[348363377,1736469042616,-10295.87128774,9.997e-05,2]
[348363378,1736469042625,-10295.87128774,9.997e-05,2]
[348363379,1736469042634,-726.56064744,9.997e-05,2]
[348363380,1736469042643,-6786.44378635,9.998e-05,2]
[348363381,1736469042652,-245.90470347,9.998e-05,2]
[348363382,1736469042661,-245.90470347,9.998e-05,2]
[348363383,1736469042671,-20652.98952248,9.999e-05,2]
[348363384,1736469042682,-10295.87128774,9.999e-05,2]
[348363385,1736469042691,-172.9,0.0001,2]
[348363386,1736469042700,-726.56064759,0.0001,2]
[348363388,1736469042709,-726.56064744,0.0001,2]
[348363389,1736469042719,-3907863.89719608,0.0001,2]
[348363390,1736469042728,-165.42394799,0.0001,2]
[348363391,1736469042737,-24438.56051201,0.0001,2]
[348363392,1736469042746,-164.00794111,0.0001,2]
[348363393,1736469042756,-239.51811027,0.0001,2]
[348363394,1736469042765,-239.51811018,0.00010003,2]
[348363395,1736469042774,-3000.0,0.0001001,2]
[348363396,1736469042783,-315.0763,0.00010014,2]
[348363397,1736469042792,-726.56064744,0.00010083,2]
[348363398,1736469042802,-157.71862569,0.00010093,2]
[348363399,1736469042811,-239.51811018,0.00010107,2]
[348363400,1736469042820,-500.0,0.0001011,2]
[348363401,1736469042829,-500.0,0.0001011,2]
[348363402,1736469042838,-500.0,0.0001011,2]
[348363403,1736469042847,-500.0,0.0001011,2]
[348363404,1736469042856,-500.0,0.0001011,2]
[348363405,1736469042865,-500.0,0.0001011,2]
[348363406,1736469042874,-500.0,0.0001011,2]
[348363407,1736469042883,-500.0,0.0001011,2]
[348363408,1736469042892,-500.0,0.0001011,2]
[348363409,1736469042902,-522.2,0.0001011,2]
[348363410,1736469042911,-507.67,0.0001011,2]
[348363411,1736469042921,-500.0,0.0001011,2]
[348363412,1736469042932,-500.0,0.0001011,2]
[348363413,1736469042941,-500.0,0.0001011,2]
[348363414,1736469042951,-500.0,0.0001011,2]
[348363415,1736469042961,-513.44,0.0001011,2]
[348363416,1736469042973,-500.0,0.0001011,2]
[348363417,1736469042984,-500.0,0.0001011,2]
[348363418,1736469042995,-500.0,0.0001011,2]
[348363419,1736469043005,-500.0,0.0001011,2]
[348363420,1736469043016,-500.0,0.0001011,2]
[348363421,1736469043027,-500.0,0.0001011,2]
[348363422,1736469043037,-500.0,0.0001011,2]
[348363423,1736469043045,-500.0,0.0001011,2]
[348363424,1736469043053,-500.0,0.0001011,2]
[348363425,1736469043062,-500.0,0.0001011,2]
[348363426,1736469043072,-500.0,0.0001011,2]
[348363427,1736469043081,-500.0,0.0001011,2]
[348363428,1736469043091,-500.0,0.0001011,2]
[348363429,1736469043100,-500.0,0.0001011,2]
[348363430,1736469043110,-510.98,0.0001011,2]
[348363431,1736469043119,-500.0,0.0001011,2]
[348363432,1736469043130,-500.0,0.0001011,2]
[348363433,1736469043141,-500.0,0.0001011,2]
[348363434,1736469043152,-500.0,0.0001011,2]
[348363435,1736469043161,-500.0,0.0001011,2]
[348363436,1736469043171,-500.0,0.0001011,2]
[348363437,1736469043180,-500.0,0.0001011,2]
[348363438,1736469043190,-500.0,0.0001011,2]
[348363439,1736469043199,-500.0,0.0001011,2]
[348363440,1736469043209,-500.0,0.0001011,2]
[348363441,1736469043218,-500.0,0.0001011,2]
[348363442,1736469043227,-500.0,0.0001011,2]
[348363443,1736469043237,-500.0,0.0001011,2]
[348363444,1736469043246,-500.0,0.0001011,2]
[348363445,1736469043256,-500.0,0.0001011,2]
[348363446,1736469043265,-500.0,0.0001011,2]
[348363448,1736469043275,-500.0,0.0001011,2]
[348363450,1736469043285,-500.0,0.0001011,2]
[348363452,1736469043294,-533.77,0.0001011,2]
[348363454,1736469043303,-500.0,0.0001011,2]
[348363456,1736469043314,-500.0,0.0001011,2]
[348363458,1736469043327,-500.0,0.0001011,2]
[348363460,1736469043336,-500.0,0.0001011,2]
[348363462,1736469043346,-500.0,0.0001011,2]
[348363464,1736469043355,-500.0,0.0001011,2]
[348363466,1736469043366,-500.0,0.0001011,2]
[348363468,1736469043375,-491.71092378,0.0001011,2]
[348363470,1736469043384,-500.0,0.0001011,2]
[348363472,1736469043394,-500.0,0.0001011,2]
[348363474,1736469043404,-500.0,0.0001011,2]
[348363476,1736469043413,-500.0,0.0001011,2]
[348363478,1736469043423,-500.0,0.0001011,2]
[348363480,1736469043433,-535.34,0.0001011,2]
[348363482,1736469043442,-500.0,0.0001011,2]
[348363483,1736469043451,-619.81,0.0001011,2]
[348363485,1736469043460,-500.0,0.0001011,2]
[348363487,1736469043470,-500.0,0.0001011,2]
[348363490,1736469043480,-500.0,0.0001011,2]
[348363492,1736469043490,-500.0,0.0001011,2]
[348363493,1736469043499,-500.0,0.0001011,2]
[348363495,1736469043510,-621.14,0.0001011,2]
[348363498,1736469043519,-500.0,0.0001011,2]
[348363499,1736469043528,-500.0,0.0001011,2]
[348363502,1736469043538,-500.0,0.0001011,2]
[348363504,1736469043547,-606.2,0.0001011,2]
[348363505,1736469043556,-500.0,0.0001011,2]
[348363507,1736469043566,-212.43793526,0.0001011,2]
[348363509,1736469043575,-500.0,0.0001011,2]
[348363511,1736469043585,-500.0,0.0001011,2]
[348363513,1736469043594,-500.0,0.0001011,2]
[348363516,1736469043604,-500.0,0.0001011,2]
[348363518,1736469043614,-500.0,0.0001011,2]
[348363519,1736469043623,-500.0,0.0001011,2]
[348363522,1736469043633,-500.0,0.0001011,2]
[348363523,1736469043643,-551.39215493,0.0001011,2]
[348363526,1736469043652,-500.0,0.0001011,2]
[348363527,1736469043662,-500.0,0.0001011,2]
[348363529,1736469043671,-500.0,0.0001011,2]
[348363531,1736469043681,-500.0,0.0001011,2]
[348363533,1736469043691,-500.0,0.0001011,2]
[348363535,1736469043701,-500.0,0.0001011,2]
[348363538,1736469043711,-500.0,0.0001011,2]
[348363539,1736469043720,-500.0,0.0001011,2]
[348363542,1736469043731,-500.0,0.0001011,2]
[348363544,1736469043741,-500.0,0.0001011,2]
[348363546,1736469043751,-500.0,0.0001011,2]
[348363547,1736469043760,-500.0,0.0001011,2]
[348363549,1736469043769,-500.0,0.0001011,2]
[348363551,1736469043779,-500.0,0.0001011,2]
[348363553,1736469043788,-500.0,0.0001011,2]
[348363556,1736469043797,-500.0,0.0001011,2]
[348363557,1736469043806,-500.0,0.0001011,2]
[348363560,1736469043816,-500.0,0.0001011,2]
[348363562,1736469043826,-500.0,0.0001011,2]